fUSD/lending_fUSD_20240425
["ID","MTS","AMOUNT","RATE_DAILY","PERIOD"]
[323476088,1714032640946,-435.57199887,0.00012498,2]
[323476089,1714032640956,-150.0,0.00012498,2]
[323476090,1714032640966,-363.52574218,0.00012498,2]
[323476091,1714032640976,-512.4166749,0.00012498,2]
[323476092,1714032640986,-502.05923926,0.00012498,2]
[323476093,1714032640996,-160.7233172,0.00012498,2]
[323476094,1714032641006,-500.0,0.00012498,2]
[323476095,1714032641017,-506.29239089,0.00012498,2]
[323476096,1714032641030,-501.7464011,0.00012498,2]
[323476097,1714032641040,-500.0,0.00012498,2]
[323476098,1714032641051,-525.00532628,0.00012498,2]
[323476099,1714032641063,-519.24692221,0.00012498,2]
[323476100,1714032641073,-500.0,0.00012498,2]
[323476101,1714032641084,-553.06936926,0.00012498,2]
[323476102,1714032641094,-500.0,0.00012498,2]
[323476103,1714032641104,-500.0,0.00012498,2]
[323476104,1714032641115,-500.0,0.00012498,2]
[323476105,1714032641126,-500.0,0.00012498,2]
[323476106,1714032641135,-500.0,0.00012498,2]
[323476107,1714032641439,-500.0,0.00012498,2]
[323476108,1714032641464,-500.0,0.00012498,2]
[323476109,1714032641481,-500.0,0.00012498,2]
[323476110,1714032641492,-500.0,0.00012498,2]
[323476111,1714032641503,-573.07237551,0.00012498,2]
[323476112,1714032641513,-500.0,0.00012498,2]
[323476113,1714032641523,-512.55460963,0.00012498,2]
[323476114,1714032641533,-500.0,0.00012498,2]
[323476115,1714032641543,-500.0,0.00012498,2]
[323476116,1714032641554,-525.91609066,0.00012498,2]
[323476117,1714032641563,-500.0,0.00012498,2]
[323476118,1714032641574,-299.49,0.00012498,2]
[323476119,1714032641584,-500.92474567,0.00012498,2]
[323476120,1714032641593,-509.38816839,0.00012498,2]
[323476121,1714032641603,-500.0,0.00012498,2]
[323476122,1714032641613,-526.06727544,0.00012498,2]
[323476123,1714032641623,-174.4393648,0.00012498,2]
[323476124,1714032641632,-500.0,0.00012498,2]
[323476125,1714032641642,-500.0,0.00012498,2]
[323476126,1714032641652,-227.75841082,0.00012498,2]
[323476127,1714032641662,-500.0,0.00012498,2]
[323476128,1714032641671,-502.06113389,0.00012498,2]
[323476129,1714032641682,-509.59832112,0.00012498,2]
[323476130,1714032641692,-500.0,0.00012498,2]
[323476131,1714032641703,-506.74884986,0.00012498,2]
[323476132,1714032641713,-500.0,0.00012498,2]
[323476133,1714032641725,-500.0,0.00012498,2]
[323476134,1714032641736,-500.0,0.00012498,2]
[323476135,1714032641748,-505.4239124,0.00012498,2]
[323476136,1714032641760,-559.5264426,0.00012498,2]
[323476137,1714032641771,-500.0,0.00012498,2]
[323476138,1714032641784,-500.0,0.00012498,2]
[323476139,1714032641795,-500.0,0.00012498,2]
[323476140,1714032641805,-502.05778128,0.00012498,2]
[323476141,1714032641816,-530.90379613,0.00012498,2]
[323476142,1714032641826,-500.0,0.00012498,2]
[323476143,1714032641837,-500.0,0.00012498,2]
[323476144,1714032641850,-500.0,0.00012498,2]
[323476145,1714032641860,-175.31783392,0.00012498,2]
[323476146,1714032641871,-500.0,0.00012498,2]
[323476147,1714032641881,-507.51725197,0.00012498,2]
[323476148,1714032641891,-500.0,0.00012498,2]
[323476149,1714032641901,-500.0,0.00012498,2]
[323476150,1714032641911,-503.01747096,0.00012498,2]
[323476151,1714032641922,-501.6670218,0.00012498,2]
[323476152,1714032641932,-500.0,0.00012498,2]
[323476153,1714032641942,-500.0,0.00012498,2]
[323476154,1714032641952,-571.58284344,0.00012498,2]
[323476155,1714032641963,-500.0,0.00012498,2]
[323476156,1714032641974,-500.0,0.00012498,2]
[323476157,1714032641988,-523.55,0.00012498,2]
[323476158,1714032641998,-500.0,0.00012498,2]
[323476159,1714032642008,-500.0,0.00012498,2]
[323476160,1714032642021,-500.0,0.00012498,2]
[323476161,1714032642034,-500.0,0.00012498,2]
[323476162,1714032642044,-501.94152878,0.00012498,2]
[323476163,1714032642054,-501.06681004,0.00012498,2]
[323476164,1714032642064,-500.0,0.00012498,2]
[323476165,1714032642074,-526.91868834,0.00012498,2]
[323476166,1714032642084,-500.0,0.00012498,2]
[323476167,1714032642095,-502.42176914,0.00012498,2]
[323476168,1714032642109,-500.0,0.00012498,2]
[323476169,1714032642121,-500.0,0.00012498,2]
[323476170,1714032642131,-500.0,0.00012498,2]
[323476171,1714032642142,-500.0,0.00012498,2]
[323476172,1714032642154,-500.0,0.00012498,2]
[323476173,1714032642164,-500.0,0.00012498,2]
[323476174,1714032642174,-514.75422803,0.00012498,2]
[323476175,1714032642184,-551.19,0.00012498,2]
[323476176,1714032642194,-500.0,0.00012498,2]
[323476177,1714032642204,-597.40877778,0.00012498,2]
[323476178,1714032642214,-520.65557546,0.00012498,2]
[323476179,1714032642225,-406.33333049,0.00012498,2]
[323476180,1714032642235,-500.0,0.00012498,2]
[323476181,1714032642247,-500.0,0.00012498,2]
[323476182,1714032642258,-505.2721633,0.00012498,2]
[323476183,1714032642268,-500.0,0.00012498,2]
[323476184,1714032642280,-500.0,0.00012498,2]
[323476185,1714032642291,-500.95004474,0.00012498,2]
[323476186,1714032642301,-457.40214613,0.00012498,2]
[323476187,1714032642312,-500.0,0.00012498,2]
[323476188,1714032642322,-460.13532042,0.00012498,2]
[323476189,1714032642333,-500.0,0.00012498,2]
[323476190,1714032642344,-500.0,0.00012498,2]
[323476191,1714032642354,-504.48129969,0.00012498,2]
[323476192,1714032642364,-500.0,0.00012498,2]
[323476193,1714032642375,-503.04701793,0.00012498,2]
[323476194,1714032642385,-500.0,0.00012498,2]
[323476195,1714032642396,-527.70438339,0.00012498,2]
[323476196,1714032642406,-500.0,0.00012498,2]
[323476197,1714032642416,-500.0,0.00012498,2]
[323476198,1714032642427,-507.4407832,0.00012498,2]
[323476199,1714032642436,-500.0,0.00012498,2]
[323476200,1714032642447,-500.0,0.00012498,2]
[323476201,1714032642456,-500.0,0.00012498,2]
[323476202,1714032642467,-489.30627906,0.00012498,2]
[323476203,1714032642476,-500.0,0.00012498,2]
[323476204,1714032642485,-504.17700013,0.00012498,2]
[323476205,1714032642495,-500.0,0.00012498,2]
[323476206,1714032642504,-500.0,0.00012498,2]
[323476207,1714032642513,-252.47655744,0.00012498,2]
[323476208,1714032642522,-500.0,0.00012498,2]
[323476209,1714032642532,-527.46613734,0.00012498,2]
[323476210,1714032642541,-503.26432233,0.00012498,2]
[323476211,1714032642550,-500.0,0.00012498,2]
[323476212,1714032642560,-500.0,0.00012498,2]
[323476213,1714032642569,-500.0,0.00012498,2]
[323476214,1714032642579,-501.66544123,0.00012498,2]
[323476215,1714032642588,-500.0,0.00012498,2]
[323476216,1714032642597,-500.0,0.00012498,2]
[323476217,1714032642606,-500.0,0.00012498,2]
[323476218,1714032642616,-500.0,0.00012498,2]
[323476220,1714032642625,-501.35207645,0.00012498,2]
[323476222,1714032642635,-500.0,0.00012498,2]
[323476223,1714032642645,-539.36845813,0.00012498,2]
[323476224,1714032642654,-600.0,0.00012498,2]
[323476225,1714032642664,-500.0,0.00012498,2]
[323476226,1714032642673,-500.50317917,0.00012498,2]
[323476227,1714032642683,-578.7334475,0.00012498,2]
[323476228,1714032642693,-501.02712759,0.00012498,2]
[323476229,1714032642702,-500.0,0.00012498,2]
[323476230,1714032642712,-564.51089894,0.00012498,2]
[323476231,1714032642721,-500.0,0.00012498,2]
[323476232,1714032642731,-500.0,0.00012498,2]
[323476233,1714032642741,-503.40038112,0.00012498,2]
[323476234,1714032642750,-500.0003638,0.00012498,2]
[323476235,1714032642761,-500.0,0.00012498,2]
[323476236,1714032642771,-501.1578786,0.00012498,2]
[323476237,1714032642780,-503.18073118,0.00012498,2]
[323476238,1714032642788,-500.97104813,0.00012498,2]
[323476239,1714032642797,-500.5058957,0.00012498,2]
[323476240,1714032642806,-648.6350162,0.00012498,2]
[323476242,1714032642815,-570.33,0.00012498,2]
[323476244,1714032642824,-517.71749136,0.00012498,2]
[323476246,1714032642833,-500.0,0.00012498,2]
[323476249,1714032642842,-500.0,0.00012498,2]
[323476252,1714032642852,-505.67968737,0.00012498,2]
[323476255,1714032642860,-500.0,0.00012498,2]
[323476258,1714032642869,-367.08538083,0.00012498,2]
[323476260,1714032642879,-500.0,0.00012498,2]
[323476262,1714032642887,-592.90225908,0.00012498,2]
[323476264,1714032642898,-500.0,0.00012498,2]
[323476266,1714032642907,-500.0,0.00012498,2]
[323476267,1714032642916,-500.0,0.00012498,2]
[323476268,1714032642925,-500.0,0.00012498,2]
[323476269,1714032642934,-180.35401806,0.00012498,2]
[323476270,1714032642944,-500.0,0.00012498,2]
[323476271,1714032642953,-500.0,0.00012498,2]
[323476272,1714032642962,-500.0,0.00012498,2]
[323476273,1714032642972,-500.0,0.00012498,2]
[323476274,1714032642981,-500.0,0.00012498,2]
[323476275,1714032642990,-1405.77,0.00012498,2]
[323476276,1714032643000,-500.0,0.00012498,2]
[323476277,1714032643010,-500.0,0.00012498,2]
[323476278,1714032643021,-500.0,0.00012498,2]
[323476279,1714032643035,-500.0,0.00012498,2]
[323476280,1714032643044,-500.29748924,0.00012498,2]
[323476281,1714032643053,-500.0,0.00012498,2]
[323476282,1714032643062,-501.01367022,0.00012498,2]
[323476283,1714032643073,-500.0,0.00012498,2]
[323476284,1714032643082,-500.0,0.00012498,2]
[323476285,1714032643092,-500.0,0.00012498,2]
[323476286,1714032643101,-500.64091805,0.00012498,2]
[323476287,1714032643112,-500.0,0.00012498,2]
[323476288,1714032643121,-500.0,0.00012498,2]
[323476289,1714032643131,-232.49205906,0.00012498,2]
[323476290,1714032643142,-500.0,0.00012498,2]
[323476291,1714032643151,-500.0,0.00012498,2]
[323476292,1714032643160,-500.0,0.00012498,2]
[323476293,1714032643172,-502.01349116,0.00012498,2]
[323476294,1714032643181,-500.0,0.00012498,2]
[323476295,1714032643190,-500.96313785,0.00012498,2]
[323476296,1714032643199,-500.0,0.00012498,2]
[323476297,1714032643208,-500.0,0.00012498,2]
[323476298,1714032643218,-516.79943794,0.00012498,2]
[323476299,1714032643227,-364.72651066,0.00012498,2]
[323476300,1714032643237,-500.0,0.00012498,2]
[323476301,1714032643246,-500.0,0.00012498,2]
[323476302,1714032643255,-501.19074427,0.00012498,2]
[323476303,1714032643265,-500.0,0.00012498,2]
[323476304,1714032643274,-500.0,0.00012498,2]
[323476305,1714032643284,-500.0,0.00012498,2]
[323476306,1714032643293,-512.06216027,0.00012498,2]
[323476307,1714032643302,-501.58529188,0.00012498,2]
[323476308,1714032643312,-500.0,0.00012498,2]
[323476309,1714032643322,-505.182449,0.00012498,2]
[323476310,1714032643331,-529.96706659,0.00012498,2]
[323476311,1714032643341,-500.0,0.00012498,2]
[323476312,1714032643350,-235.3749755,0.00012498,2]
[323476313,1714032643360,-500.0,0.00012498,2]
[323476314,1714032643369,-500.0,0.00012498,2]
[323476315,1714032643378,-500.0,0.00012498,2]
[323476316,1714032643387,-505.11537152,0.00012498,2]
[323476317,1714032643398,-500.0,0.00012498,2]
[323476318,1714032643408,-500.0,0.00012498,2]
[323476320,1714032643417,-507.60062284,0.00012498,2]
[323476321,1714032643427,-500.0,0.00012498,2]
[323476322,1714032643436,-563.15617129,0.00012498,2]
[323476323,1714032643446,-505.49344306,0.00012498,2]
[323476324,1714032643457,-500.0,0.00012498,2]
[323476325,1714032643467,-500.0,0.00012498,2]
[323476326,1714032643477,-580.14669754,0.00012498,2]
[323476327,1714032643486,-517.66930732,0.00012498,2]
[323476328,1714032643495,-500.0,0.00012498,2]
[323476330,1714032643504,-500.0,0.00012498,2]
[323476332,1714032643514,-521.32071622,0.00012498,2]
[323476334,1714032643523,-500.0,0.00012498,2]
[323476335,1714032643532,-500.0,0.00012498,2]
[323476337,1714032643542,-504.49335913,0.00012498,2]
[323476338,1714032643551,-507.60851587,0.00012498,2]
[323476339,1714032643560,-500.0,0.00012498,2]
[323476340,1714032643569,-500.0,0.00012498,2]
[323476341,1714032643578,-500.0,0.00012498,2]
[323476342,1714032643587,-507.32666584,0.00012498,2]
[323476343,1714032643597,-509.28625678,0.00012498,2]
[323476344,1714032643606,-505.54962366,0.00012498,2]
[323476345,1714032643615,-500.0,0.00012498,2]
[323476346,1714032643624,-500.0,0.00012498,2]
[323476347,1714032643634,-588.23,0.00012498,2]
[323476348,1714032643643,-566.50890074,0.00012498,2]
[323476349,1714032643652,-500.0,0.00012498,2]
[323476350,1714032643661,-500.0,0.00012498,2]
[323476351,1714032643671,-500.0,0.00012498,2]
[323476352,1714032643680,-500.0,0.00012498,2]
[323476353,1714032643689,-500.0,0.00012498,2]
[323476354,1714032643699,-501.16869975,0.00012498,2]
[323476355,1714032643709,-500.0,0.00012498,2]
[323476356,1714032643719,-500.0,0.00012498,2]
[323476357,1714032643729,-500.0,0.00012498,2]
[323476358,1714032643738,-164.70946529,0.00012498,2]
[323476359,1714032643748,-500.0,0.00012498,2]
[323476360,1714032643758,-500.0,0.00012498,2]
[323476361,1714032643768,-500.0,0.00012498,2]
[323476362,1714032643777,-500.0,0.00012498,2]
[323476363,1714032643787,-500.0,0.00012498,2]
[323476364,1714032643796,-500.0,0.00012498,2]
[323476365,1714032643806,-520.61160639,0.00012498,2]
[323476366,1714032643815,-500.0,0.00012498,2]
[323476367,1714032643825,-500.0,0.00012498,2]
[323476368,1714032643834,-500.0,0.00012498,2]
[323476369,1714032643844,-590.43581003,0.00012498,2]
[323476370,1714032643853,-500.0,0.00012498,2]
[323476371,1714032643863,-500.0,0.00012498,2]
[323476372,1714032643872,-500.0,0.00012498,2]
[323476373,1714032643881,-500.0,0.00012498,2]
[323476374,1714032643891,-593.87758429,0.00012498,2]
[323476375,1714032643901,-500.0,0.00012498,2]
[323476376,1714032643910,-501.33957179,0.00012498,2]
[323476377,1714032643919,-500.0,0.00012498,2]
[323476378,1714032643929,-500.0,0.00012498,2]
[323476379,1714032643938,-500.0,0.00012498,2]
[323476380,1714032643948,-522.83428785,0.00012498,2]
[323476381,1714032643957,-500.0,0.00012498,2]
[323476382,1714032643967,-500.0,0.00012498,2]
[323476383,1714032643976,-500.0,0.00012498,2]
[323476384,1714032643985,-500.0,0.00012498,2]
[323476385,1714032643995,-215.24131147,0.00012498,2]
[323476386,1714032644005,-571.5063466,0.00012498,2]
[323476387,1714032644014,-641.09750437,0.00012498,2]
[323476388,1714032644024,-504.19323945,0.00012498,2]
[323476389,1714032644035,-500.0,0.00012498,2]
[323476390,1714032644045,-176.78571991,0.00012498,2]
[323476391,1714032644055,-412.42427579,0.00012498,2]
[323476392,1714032644064,-500.0,0.00012498,2]
[323476393,1714032644074,-502.36542532,0.00012498,2]
[323476394,1714032644084,-500.0,0.00012498,2]
[323476395,1714032644093,-500.0,0.00012498,2]
[323476396,1714032644102,-506.65730338,0.00012498,2]
[323476397,1714032644112,-500.0,0.00012498,2]
[323476398,1714032644122,-514.68,0.00012498,2]
[323476399,1714032644130,-523.81032441,0.00012498,2]
[323476400,1714032644140,-388.55946281,0.00012498,2]
[323476401,1714032644150,-500.0,0.00012498,2]
[323476402,1714032644159,-500.0,0.00012498,2]
[323476403,1714032644167,-500.0,0.00012498,2]
[323476404,1714032644177,-500.0,0.00012498,2]
[323476405,1714032644186,-500.0,0.00012498,2]
[323476406,1714032644195,-583.29544887,0.00012498,2]
[323476407,1714032644204,-500.0,0.00012498,2]
[323476408,1714032644214,-500.0,0.00012498,2]
[323476409,1714032644223,-500.0,0.00012498,2]
[323476410,1714032644232,-500.0,0.00012498,2]
[323476411,1714032644241,-500.0,0.00012498,2]
[323476412,1714032644250,-500.0,0.00012498,2]
[323476413,1714032644259,-506.74581518,0.00012498,2]
[323476414,1714032644269,-500.0,0.00012498,2]
[323476415,1714032644278,-500.0,0.00012498,2]
[323476416,1714032644287,-500.0,0.00012498,2]
[323476417,1714032644296,-594.8,0.00012498,2]
[323476418,1714032644305,-500.0,0.00012498,2]
[323476419,1714032644315,-500.0,0.00012498,2]
[323476420,1714032644324,-518.07392362,0.00012498,2]
[323476421,1714032644334,-500.0,0.00012498,2]
[323476422,1714032644343,-500.0,0.00012498,2]
[323476423,1714032644353,-500.0,0.00012498,2]
[323476424,1714032644363,-500.0,0.00012498,2]
[323476425,1714032644372,-500.0,0.00012498,2]
[323476426,1714032644382,-500.0,0.00012498,2]
[323476427,1714032644391,-540.63650867,0.00012498,2]
[323476428,1714032644400,-500.0,0.00012498,2]
[323476429,1714032644410,-500.0,0.00012498,2]
[323476430,1714032644419,-500.0,0.00012498,2]
[323476431,1714032644429,-552.37,0.00012498,2]
[323476432,1714032644439,-590.97705494,0.00012498,2]
[323476433,1714032644449,-500.0,0.00012498,2]
[323476434,1714032644458,-500.0,0.00012498,2]
[323476435,1714032644468,-858.17,0.00012498,2]
[323476436,1714032644477,-500.0,0.00012498,2]
[323476437,1714032644486,-551.1,0.00012498,2]
[323476438,1714032644495,-500.0,0.00012498,2]
[323476439,1714032644505,-500.0,0.00012498,2]
[323476440,1714032644668,-508.4744627,0.00012498,2]
[323476441,1714032644677,-555.01436582,0.00012498,2]
[323476442,1714032644687,-500.0,0.00012498,2]
[323476443,1714032644696,-500.0,0.00012498,2]
[323476444,1714032644705,-500.0,0.00012498,2]
[323476445,1714032644714,-503.89755818,0.00012498,2]
[323476446,1714032644723,-511.76834471,0.00012498,2]
[323476447,1714032644733,-517.29033168,0.00012498,2]
[323476448,1714032644742,-500.0,0.00012498,2]
[323476449,1714032644751,-500.0,0.00012498,2]
[323476450,1714032644760,-616.545956,0.00012498,2]
[323476451,1714032644769,-500.0,0.00012498,2]
[323476452,1714032644778,-563.83610594,0.00012498,2]
[323476453,1714032644787,-500.0,0.00012498,2]
[323476454,1714032644796,-500.0,0.00012498,2]
[323476455,1714032644805,-500.0,0.00012498,2]
[323476456,1714032644814,-500.0,0.00012498,2]
[323476457,1714032644824,-501.37844983,0.00012498,2]
[323476458,1714032644833,-571.88874838,0.00012498,2]
[323476459,1714032644842,-524.35353056,0.00012498,2]
[323476460,1714032644852,-500.0,0.00012498,2]
[323476461,1714032644861,-367.0433226,0.00012498,2]
[323476462,1714032644870,-511.56130948,0.00012498,2]
[323476463,1714032644879,-508.57551046,0.00012498,2]
[323476464,1714032644889,-500.0,0.00012498,2]
[323476465,1714032644899,-500.0,0.00012498,2]
[323476466,1714032644908,-500.0,0.00012498,2]
[323476467,1714032644917,-500.0,0.00012498,2]
[323476468,1714032644926,-500.0,0.00012498,2]
[323476469,1714032644935,-500.0,0.00012498,2]
[323476470,1714032644944,-4937.75,0.00012498,2]
[323476471,1714032644954,-504.17834275,0.00012498,2]
[323476472,1714032644964,-500.0,0.00012498,2]
[323476473,1714032644973,-500.0,0.00012498,2]
[323476474,1714032644983,-501.91040959,0.00012498,2]
[323476475,1714032644992,-500.0,0.00012498,2]
[323476476,1714032645002,-500.0,0.00012498,2]
[323476477,1714032645011,-523.83669044,0.00012498,2]
[323476478,1714032645022,-500.0,0.00012498,2]
[323476479,1714032645033,-500.0,0.00012498,2]
[323476480,1714032645043,-500.0,0.00012498,2]
[323476481,1714032645052,-504.95385244,0.00012498,2]
[323476482,1714032645062,-500.0,0.00012498,2]
[323476483,1714032645072,-500.0,0.00012498,2]
[323476484,1714032645082,-448.86910571,0.00012498,2]
[323476485,1714032645091,-500.0,0.00012498,2]
[323476486,1714032645101,-500.0,0.00012498,2]
[323476487,1714032645111,-500.0,0.00012498,2]
[323476488,1714032645121,-536.68,0.00012498,2]
[323476489,1714032645130,-506.57342914,0.00012498,2]
[323476490,1714032645141,-500.0,0.00012498,2]
[323476491,1714032645151,-500.0,0.00012498,2]
[323476492,1714032645160,-500.0,0.00012498,2]
[323476493,1714032645169,-500.0,0.00012498,2]
[323476494,1714032645178,-500.0,0.00012498,2]
[323476495,1714032645188,-500.81687954,0.00012498,2]
[323476496,1714032645197,-500.0,0.00012498,2]
[323476497,1714032645207,-500.0,0.00012498,2]
[323476498,1714032645216,-543.78913507,0.00012498,2]
[323476499,1714032645226,-500.0,0.00012498,2]
[323476500,1714032645235,-500.0,0.00012498,2]
[323476501,1714032645244,-500.0,0.00012498,2]
[323476502,1714032645253,-500.0,0.00012498,2]
[323476503,1714032645263,-500.0,0.00012498,2]
[323476504,1714032645272,-499.97953853,0.00012498,2]
[323476505,1714032645286,-507.92,0.00012498,2]
[323476506,1714032645295,-500.0,0.00012498,2]
[323476507,1714032645305,-551.61,0.00012498,2]
[323476508,1714032645313,-500.27743837,0.00012498,2]
[323476509,1714032645322,-3470.28,0.00012498,2]
[323476510,1714032645331,-642.31924095,0.00012498,2]
[323476511,1714032645340,-500.0,0.00012498,2]
[323476512,1714032645350,-500.0,0.00012498,2]
[323476513,1714032645359,-500.0,0.00012498,2]
[323476514,1714032645368,-500.58164907,0.00012498,2]
[323476515,1714032645377,-431.34023431,0.00012498,2]
[323476516,1714032645387,-500.0,0.00012498,2]
[323476517,1714032645396,-500.0,0.00012498,2]
[323476518,1714032645406,-628.73017738,0.00012498,2]
[323476519,1714032645415,-639.2455441,0.00012498,2]
[323476520,1714032645424,-500.85893689,0.00012498,2]
[323476521,1714032645434,-500.0,0.00012498,2]
[323476522,1714032645443,-288.700923,0.00012498,2]
[323476523,1714032645452,-500.0,0.00012498,2]
[323476524,1714032645462,-500.0,0.00012498,2]
[323476525,1714032645471,-500.0,0.00012498,2]
[323476526,1714032645483,-234.61252294,0.00012498,2]
[323476527,1714032645493,-500.0,0.00012498,2]
[323476528,1714032645503,-500.0,0.00012498,2]
[323476529,1714032645513,-500.0,0.00012498,2]
[323476530,1714032645522,-500.0,0.00012498,2]
[323476531,1714032645531,-428.26904794,0.00012498,2]
[323476532,1714032645541,-566.83,0.00012498,2]
[323476533,1714032645550,-509.09096962,0.00012498,2]
[323476534,1714032645560,-500.0,0.00012498,2]
[323476535,1714032645570,-500.0,0.00012498,2]
[323476536,1714032645581,-186.94819672,0.00012498,2]
[323476537,1714032645590,-198.29636428,0.00012498,2]
[323476538,1714032645600,-500.0,0.00012498,2]
[323476539,1714032645610,-500.0,0.00012498,2]
[323476540,1714032645619,-500.0,0.00012498,2]
[323476542,1714032645628,-500.0,0.00012498,2]
[323476544,1714032645638,-500.0,0.00012498,2]
[323476545,1714032645647,-500.0,0.00012498,2]
[323476546,1714032645658,-500.0,0.00012498,2]
[323476547,1714032645668,-500.0,0.00012498,2]
[323476548,1714032645678,-587.72,0.00012498,2]
[323476549,1714032645687,-500.0,0.00012498,2]
[323476550,1714032645697,-500.0,0.00012498,2]
[323476551,1714032645707,-500.0,0.00012498,2]
[323476552,1714032645717,-621.66,0.00012498,2]
[323476553,1714032645727,-500.0,0.00012498,2]
[323476554,1714032645736,-500.0,0.00012498,2]
[323476555,1714032645745,-508.48345372,0.00012498,2]
[323476556,1714032645754,-500.0,0.00012498,2]
[323476557,1714032645764,-500.0,0.00012498,2]
[323476558,1714032645774,-500.0,0.00012498,2]
[323476559,1714032645783,-500.0,0.00012498,2]
[323476560,1714032645794,-509.04328851,0.00012498,2]
[323476561,1714032645803,-346.26841891,0.00012498,2]
[323476562,1714032645813,-500.0,0.00012498,2]
[323476563,1714032645822,-500.0,0.00012498,2]
[323476564,1714032645832,-157.87086375,0.00012498,2]
[323476565,1714032645842,-185.91576473,0.00012498,2]
[323476566,1714032645851,-500.0,0.00012498,2]
[323476567,1714032645861,-346.890571,0.00012498,2]
[323476568,1714032645870,-515.08825098,0.00012498,2]
[323476569,1714032645879,-577.44849648,0.00012498,2]
[323476570,1714032645889,-506.58555054,0.00012498,2]
[323476571,1714032645901,-500.0,0.00012498,2]
[323476572,1714032645910,-500.0,0.00012498,2]
[323476573,1714032645919,-472.3308992,0.00012498,2]
[323476574,1714032645928,-500.0,0.00012498,2]
[323476575,1714032645938,-500.0,0.00012498,2]
[323476576,1714032645947,-454.42209009,0.00012498,2]
[323476577,1714032645958,-500.0,0.00012498,2]
[323476578,1714032645969,-232.52079518,0.00012498,2]
[323476579,1714032645979,-635.27661698,0.00012498,2]
[323476580,1714032645988,-500.0,0.00012498,2]
[323476581,1714032645998,-500.0,0.00012498,2]
[323476582,1714032646008,-500.0,0.00012498,2]
[323476583,1714032646017,-284.18477982,0.00012498,2]
[323476584,1714032646028,-500.0,0.00012498,2]
[323476585,1714032646038,-501.50920273,0.00012498,2]
[323476586,1714032646048,-500.0,0.00012498,2]
[323476587,1714032646058,-500.0,0.00012498,2]
[323476588,1714032646068,-500.0,0.00012498,2]
[323476589,1714032646078,-500.0,0.00012498,2]
[323476590,1714032646088,-500.0,0.00012498,2]
[323476591,1714032646098,-577.62,0.00012498,2]
[323476592,1714032646108,-501.24630836,0.00012498,2]
[323476593,1714032646118,-308.18095975,0.00012498,2]
[323476594,1714032646127,-500.0,0.00012498,2]
[323476595,1714032646136,-500.0,0.00012498,2]
[323476596,1714032646147,-500.0,0.00012498,2]
[323476597,1714032646156,-504.34733002,0.00012498,2]
[323476598,1714032646165,-500.0,0.00012498,2]
[323476599,1714032646174,-500.0,0.00012498,2]
[323476600,1714032646185,-500.0,0.00012498,2]
[323476601,1714032646195,-500.0,0.00012498,2]
[323476602,1714032646204,-500.0,0.00012498,2]
[323476603,1714032646215,-500.0,0.00012498,2]
[323476604,1714032646225,-498.91072709,0.00012498,2]
[323476605,1714032646234,-500.0,0.00012498,2]
[323476606,1714032646244,-594.14,0.00012498,2]
[323476607,1714032646255,-500.0,0.00012498,2]
[323476608,1714032646264,-610.84897656,0.00012498,2]
[323476609,1714032646273,-200.0,0.00012499,10]
[323476610,1714032646283,-187.26885286,0.00012499,2]
[323476612,1714032646303,-503.09893982,0.00012499,2]